Cogmind - Beta 9.3 @@@ ROGUE MODE // 2019.12.18 @ 21:16:48 // Winter2019/RPGLIKE Player: spruce (@macklemurr) Result: Destroyed by G-34 Mercenary with Small Laser Performance ------------- Evolutions (0) 0 Regions Visited (1) 200 Robots Destroyed (5) 25 Value Destroyed (120) 120 Prototype IDs (0) 0 Alien Tech Used (0) 0 Bonus (0) 0 TOTAL SCORE: 345 Bonus ------- None Cogmind --------- Core Integrity 0/600 Matter 227/300 Energy 250/250 System Corruption 0% Temperature Cool (87) Movement Core (50) Location -10/Materials Parts ------- > --- POWER (1) -------- Ion Engine > --- PROPULSION (2) --- (None) > --- UTILITY (2) ------ (None) > --- WEAPON (2) ------- Small Laser > --- INVENTORY (2) ---- (None) Peak State ------------ > --- POWER ------------ Ion Engine > --- PROPULSION ------- (None) > --- UTILITY ---------- (None) > --- WEAPON ----------- Plasma Cutter Plasma Cutter > --- INVENTORY -------- (None) [Rating: 5] Favorites ----------- Power Ion Engine Engine Ion Engine Propulsion None Utility None Weapon Plasma Cutter Energy Gun Small Laser Ballistic Gun Assault Rifle Special Weapon Plasma Cutter Build | -11 -10 ------- Run | Scr Mat Slots Evolved 3 | 3 . Power . | . . Propulsion 1 | 1 . Utility 1 | 1 . Weapon 1 | 1 . Parts Attached 6 | 3 3 Power 1 | 1 . Engine 1 | 1 . Core . | . . Reactor . | . . Propulsion . | . . Treads . | . . Leg . | . . Wheel . | . . Hover . | . . Flight . | . . Utility . | . . Device . | . . Storage . | . . Processor . | . . Hackware . | . . Protection . | . . Artifact . | . . Weapon 5 | 2 3 Energy Gun 1 | . 1 Energy Cannon . | . . Ballistic Gun 2 | 2 . Ballistic Cannon . | . . Launcher . | . . Special Weapon 2 | . 2 Impact Weapon . | . . Slashing Weapon . | . . Piercing Weapon . | . . Special Melee Weapon . | . . Unidentified Prototypes . | . . Parts Lost 2 | . 2 Power . | . . Propulsion . | . . Utility . | . . Weapon 2 | . 2 Highest Loss Streak 2 | . 2 Average Slot Usage (%) 40 | . 40 Engine 14 | . 14 Energy Gun 1 | . 1 Ballistic Gun 1 | . 1 Special Weapon 23 | . 23 Naked Turns . | . . Heaviest Build 9 | 9 9 Greatest Support 13 | 13 13 Greatest Overweight (x) . | . . Average Overweight (x) . | . . Largest Inventory Capacity 2 | 2 2 Average Capacity 2 | 2 2 Most Carried . | . . Average Carried . | . . Final Capacity 2 | 2 2 Final Carried . | . . Class Distribution -------------------- 100% | Mutant Dominant Class ---------------- Mutant | -10/Materials Resources | -11 -10 ----------- Run | Scr Mat Matter Collected 177 | 87 90 Remotely . | . . Salvage Created 150 | . 150 Parts 18 | . 18 Haulers Intercepted 1 | . 1 Recyclers Shooed . | . . Parts Field Recycled . | . . Retrieved Matter . | . . Parts Self-Destructed . | . . Prevented . | . . Kills | -11 -10 ------- Run | Scr Mat Combat Hostiles Destroyed 3 | . 3 Cannons 3 | . 3 Classes Destroyed 3 | . 3 Hauler 1 | . 1 Operator 1 | . 1 Grunt 3 | . 3 Best Kill Streak 2 | . 2 Combat Bots Only 2 | . 2 Max Kills in Single Turn 1 | . 1 Gunslinging . | . . Exploded . | . . Melee . | . . Uniques/NPCs Destroyed . | . . Combat | -11 -10 -------- Run | Scr Mat Damage Taken 762 | . 762 Core 651 | . 651 Absorbed by Shields . | . . Redirected to Core 367 | . 367 Core Remaining (%) 100 | 100 . Volleys Fired 25 | . 25 Largest 2 | . 2 Hottest 40 | . 40 Shots Fired 40 | . 40 Gun 7 | . 7 Cannon . | . . Launcher . | . . Special 33 | . 33 Kinetic . | . . Thermal 40 | . 40 Explosive . | . . Electromagnetic . | . . Robot Hit Streak 9 | . 9 Robot Miss Streak 2 | . 2 Penetration Max . | . . Secondary Targets . | . . Shots Hit Robots 30 | . 30 Core Hits 13 | . 13 Critical Hits 1 | . 1 Critical Kills 1 | . 1 Critical Parts Destroyed . | . . Melee Attacks . | . . Impact . | . . Slashing . | . . Piercing . | . . Sneak Attacks . | . . Combat Hostiles . | . . Follow-up Attacks . | . . Damage Inflicted 346 | . 346 Guns 80 | . 80 Cannons . | . . Explosions . | . . Melee . | . . Ramming . | . . Kinetic . | . . Thermal 346 | . 346 Explosive . | . . Electromagnetic . | . . Impact . | . . Slashing . | . . Piercing . | . . Highest Corruption . | . . Average Corruption . | . . Corruption Purged . | . . Overload Shots . | . . Overflow Damage . | . . Projectiles . | . . Explosions . | . . Melee . | . . Knockbacks . | . . Impact . | . . Kinetic . | . . Secondary . | . . Self-Inflicted Damage . | . . Shots . | . . Rammed . | . . Targets Rammed . | . . Kicked . | . . Crushed . | . . Highest Temperature 81 | . 81 Average Temperature 28 | . 28 Received Heat Transfer 432 | . 432 Siege Activations . | . . Robots Corrupted . | . . Combat Hostiles . | . . Parts Fried . | . . Impact Corruptions . | . . Robots Melted . | . . Combat Hostiles . | . . Parts Melted 4 | . 4 Heat Transferred 1063 | . 1063 Parts Sabotaged . | . . Parts Stolen . | . . Parts Stripped . | . . Power Chain Reactions . | . . Missiles Intercepted . | . . Alert | -11 -10 ------- Run | Scr Mat Peak Influence 97 | . 97 Average Influence 29 | . 53 Maximum Alert Level . | . . Low Security (%) 100 | 100 100 Level 1 . | . . Level 2 . | . . Level 3 . | . . Level 4 . | . . Level 5 . | . . High Security . | . . Max Security . | . . Squads Dispatched 2 | . 2 Investigation 1 | . 1 Extermination . | . . Reinforcement 1 | . 1 Assault . | . . Garrison . | . . Intercept . | . . Construction Impeded . | . . Haulers Reinforced . | . . Stealth | -11 -10 --------- Run | Scr Mat Distress Signals 1 | . 1 Communications Jammed . | . . Distress Signals . | . . Times Spotted 9 | . 9 Peak Tracking Total 4 | . 4 Tactical Retreats . | . . Traps | -11 -10 ------- Run | Scr Mat Traps Triggered 1 | . 1 Indirectly . | . . Trap Hack Attempts . | . . Triggered . | . . Disarmed . | . . Reprogrammed . | . . Reused . | . . Traps Extracted . | . . Installed . | . . Triggered . | . . Machines | -11 -10 ---------- Run | Scr Mat Machines Disabled . | . . Max in Single Turn . | . . Machines Sabotaged . | . . Garrisons Compromised . | . . Overloaded Fab Kills . | . . Fab Network Shutdowns . | . . Hacking | -11 -10 --------- Run | Scr Mat Machines Accessed . | . . Terminals . | . . Fabricators . | . . Repair Stations . | . . Recycling Units . | . . Scanalyzers . | . . Garrison Access . | . . Total Hacks . | . . Successful . | . . Failed . | . . Catastrophic . | . . Database Lockouts . | . . Manual . | . . Terminals . | . . Fabricators . | . . Repair Stations . | . . Recycling Units . | . . Scanalyzers . | . . Garrison Access . | . . Terminal Hacks . | . . Fabricator Hacks . | . . Repair Station Hacks . | . . Recycling Unit Hacks . | . . Scanalyzer . | . . Garrison Access Hacks . | . . Unauthorized Hacks . | . . Terminals . | . . Fabricators . | . . Repair Stations . | . . Recycling Units . | . . Scanalyzers . | . . Garrison Access . | . . Data Cores Recovered . | . . Used . | . . Hacking Detections . | . . Full Trace Events . | . . Feedback Events . | . . Feedback Blocked . | . . Robot Schematics Acquired . | . . Robots Built . | . . Matter . | . . Time . | . . Total Robot Build Rating . | . . Part Schematics Acquired . | . . Parts Built . | . . Matter . | . . Time . | . . Total Part Build Rating . | . . Parts Repaired . | . . Time . | . . Parts Recycled . | . . Recycled Matter . | . . Retrieved Matter . | . . Retrieved Components . | . . Parts Scanalyzed . | . . Part Schematics Acquired . | . . Parts Damaged . | . . Bothacking | -11 -10 ------------ Run | Scr Mat Used RIF Installer . | . . Robots Hacked . | . . Non-combat . | . . Combat . | . . Robot Hacks Applied . | . . Relay Couplers Released . | . . Robots Rewired . | . . Allies Hacked . | . . Hacks Repelled . | . . Allies | -11 -10 -------- Run | Scr Mat Total Allies . | . . Largest Group . | . . Highest-Rated Group . | . . Highest-Rated Ally . | . . Total Orders . | . . Ally Attacks . | . . Total Damage . | . . Kills . | . . Allies Corrupted . | . . Allies Melted . | . . Intel | -11 -10 ------- Run | Scr Mat Robot Analysis Total . | . . Derelict Logs Recovered . | . . Drone Launches . | . . Drone Recoveries . | . . Exploration | -11 -10 ------------- Run | Scr Mat Turns Passed 371 | 167 204 Spaces Moved 150 | 27 123 Core 150 | 27 123 Treads . | . . Legs . | . . Wheels . | . . Hover . | . . Flight . | . . Fastest Speed 50 | 50 50 Average Speed 50 | 50 50 Slowest Speed 50 | 50 50 Overloaded Moves . | . . Propulsion Burnouts . | . . Robots Hopped . | . . Cave-ins Triggered . | . . Exploration Rate (%) 13 | 5 21 Regions Visited 1 Branch Regions . Pre-discovered Areas . | . . Known Exits Taken . | . . Unknown Exits Taken 1 | 1 . Scrap Searched . | . . Spaces Dug . | . . Terrain Destroyed . | . . Melee . | . . Projectile . | . . AOE . | . . Actions | -11 -10 --------- Run | Scr Mat Total 371 | 178 193 Wait 186 | 149 37 Move 149 | 26 123 Hop . | . . Pick Up . | . . Fast Attach 6 | 3 3 Attach . | . . Detach . | . . Swap . | . . Drop 2 | . 2 Fire 25 | . 25 Melee . | . . Ram . | . . Kick . | . . Crush . | . . Escape Stasis . | . . Rewire . | . . Trap . | . . Miscellaneous 3 | . 3 Route ------- -11/Scrapyard -10/Materials (discovered 1 exit: [*Min]) History --------- Turn | Location | Event 1 | -11/Scrapyard | Upgraded with Propulsion slot (x1) 1 | -11/Scrapyard | Upgraded with Utility slot (x1) 1 | -11/Scrapyard | Upgraded with Weapon slot (x1) 11 | -11/Scrapyard | Discovered new exit (range 15) 168 | -11/Scrapyard | Entered Materials 185 | -10/Materials | Discovered new exit (range 15) 313 | -10/Materials | Build established: Mutant 345 | -10/Materials | Core integrity fell below 50% 363 | -10/Materials | Core integrity fell below 20% 372 | -10/Materials | Destroyed by G-34 Mercenary with Small Laser Last Messages --------------- 00285_ An alarm sounds. 00285_ ALERT: Alarm triggered, dispatching investigation squad. 00300_ A-02 Transporter suffers critical hit. 00300_ Transport Network Coupler melted. 00300_ A-02 Transporter destroyed. 00315_ U-05 Engineer lays Concrete. 00316_ Heat Sink melted. 00316_ G-34 Mercenary destroyed. 00343_ K-01 Serf collects debris. 00344_ G-47 Trooper heat spikes uncontrollably. 00344_ G-47 Trooper overheating. 00344_ Plasma Cutter destroyed. 00345_ G-47 Trooper overheating. 00347_ G-47 Trooper heat damages core (-6). 00347_ G-47 Trooper overheating. 00354_ Plasma Cutter destroyed. 00355_ K-01 Serf collects debris. 00358_ Acquired Sml. Laser. 00358_ K-01 Serf collects debris. 00371_ Destroyed Particle Gun. Map ----- +----------------------------------------------------+ | ??????????? #?????????? | | ??????????? #?????????? | | ??????????? ### ##### #?????????? | | ????????????######+####### #?# #???#!#?????????? | | ?????????????????????????# #?# #???#*#?????????? | | ?????????????????????????# #?#[#???# #?????????? | | ?????????????????????????# ###+##### #?????????? | | ?????????????????????????# ##*%! # #?????????? | | ??????????????????????#### ## =""" # #?????????? | | ??????????????????????#" # """ # #?????????? | | ??????????????????????#"" # """ # #?????????? | | ??????????????????????#!! # # #?????????? | | ??????????????????????#"" < # """ # ??????????? | | ??????????????????????#!! # """ + ??????????? | | ??????????????????????#"" # ""??? ??????????? | | ??????????????????????#" # ????#??????????? | | ??????????????????????#### ## "???????????????? | | ?????????????????????????# ## "???????????????? | | ?????????????????????????# ## "???????????????? | | ?????????????????????????# ## ????????????????? | | ????????????????????????## ####????????????????? | | ??????????????###+####### #??????????????????? | | ??????????????# = #??????????????????? | | ??????????????# !!g #??????????????????? | | ??????????????# !!%g! #??????????????????? | | ??????????????# ####+##@= #??????????????????? | | ??????????????# ????????#%#####??????????????????? | | ????????????????????????#=#??????????????????????? | | ????????????????????????#*#??????????????????????? | | ????????????????????????# #??????????????????????? | | ????????????????????????# #??????????????????????? | | ????????????????????????# #??????????????????????? | | ????????????????????????#g#??????????????????????? | | ????????????????????????#w#??????????????????????? | | ????????????????????????# ??????????????????????? | | ????????????????????????? ??????????????????????? | | ????????????????????????? #??????????????????????? | | ?????????????????????????m???????????????????????? | | ????????????????????????? ???????????????????????? | | ????????????????????????? ???????????????????????? | | ????????????????????????? ???????????????????????? | | ????????????????????????? ???????????????????????? | | ?????????????????????????????????????????????????? | | ?????????????????????????????????????????????????? | | ?????????????????????????????????????????????????? | | ?????????????????????????????????????????????????? | | ?????????????????????????????????????????????????? | | ?????????????????????????????????????????????????? | | ?????????????????????????????????????????????????? | | ?????????????????????????????????????????????????? | +----------------------------------------------------+ Best States ------------- Heat Dissipation 25 Energy Generation 10 Energy Capacity 250 Matter Stores 232 Matter Capacity 300 Sight Range 16 Terrain Scan Density 10 Evasion (%) 50 Offensive Hacking 5 Defensive Hacking 5 Item Schematics ----------------- None Robot Schematics ------------------ None Fabricated ------------ Nothing Alien Tech Used ----------------- None Achievements -------------- None Challenges ------------ None RPGLIKE | -11 -10 --------- Run | Scr Mat Levels Raised . | . . XP Earned 3385 | 3000 385 XP Spent 2950 | 2950 . Upgrades 9 | 9 . Propulsion Slot 1 | 1 . Utility Slot 1 | 1 . Weapon Slot 1 | 1 . Mass Support 2 | 2 . Inventory Capacity 2 | 2 . Hack Attack % 1 | 1 . Hack Defense % 1 | 1 . Protomatter Created 81 | . 81 Integrity Restored 56 | . 56 Core 45 | . 45 Parts 11 | . 11 Protomatter Decayed 28 | . 28 Game ------ Seed NuclearZioniteRail Manual? 0 Play Time 00:18:32 Cumulative 90.3 hours Start 2019.12.18 @ 19:53:49 End 2019.12.18 @ 21:16:48 Sessions 1 Manual Loads 0 Difficulty Rogue Special Mode Winter2019/RPGLIKE Game No. 197 Rogue 197 Adventurer 0 Explorer 0 Win Type - Total 1 Types 1/0/0/0/0/0/0 Lore% 80 Gallery% 71 Achievement% 59 Wizard Run 0 Options --------- ASCII 0 Keyboard 0 Movement Numpad Keybinds 0 Fullscreen 1 Font 24/Smallcaps Map View 76x50 Tactical HUD 1 Map Filters NONE Filters NONE Steam 1 RUN: 0a8b36a8-b7b2-4173-8ea3-1a2f4a471f97